[Event "AUT Bundesliga 2019-20"]
[Site "Linz"]
[Date "2019.10.10"]
[Round "1.4"]
[White "Anistratov, Dmitriy"]
[Black "Buhmann, Rainer"]
[Result "0-1"]
[ECO "A08"]
[WhiteElo "2269"]
[BlackElo "2574"]
[Annotator "ChessBase"]
[PlyCount "94"]
[EventDate "2019.10.10"]
[EventType "team-tourn"]
[EventCountry "AUT"]
[SourceTitle "playchess.com"]
[Source "ChessBase"]
[SourceQuality "1"]
[TimeControl "40/5400+30:1800+30"]

1. Nf3 {[%emt 0:00:00]} Nf6 {[%emt 0:00:00]} 2. g3 {[%emt 0:00:00]} e6 {[%emt 0:01:55]} 3. Bg2 {[%emt 0:00:03]} d5 {[%emt 0:00:34]} 4. O-O {[%emt 0:00:11]} Be7 {[%emt 0:00:04]} 5. d3 {[%emt 0:00:25]} O-O {[%emt 0:02:17]} 6. Nbd2 {[%emt 0:00:47]} c5 {[%emt 0:00:44]} 7. e4 {[%emt 0:00:42]} Nc6 {[%emt 0:00:15]} 8. Re1 {[%emt 0:00:17]} Qc7 {[%emt 0:02:29]} 9. exd5 {[%emt 0:00:53]} exd5 {[%emt 0:04:46]} 10. d4 {[%emt 0:00:23]} Bg4 {[%emt 0:05:36]} 11. dxc5 {[%emt 0:00:41]} Bxc5 {[%emt 0:01:13]} 12. Nb3 {[%emt 0:00:25]} Bb6 {[%emt 0:02:54]} 13. Be3 {[%emt 0:00:38]} Rfe8 {[%emt 0:04:36]} 14. Qd2 {[%emt 0:06:48]} Bxf3 {[%emt 0:16:03]} 15. Bxb6 {[%emt 0:06:59]} Rxe1+ {[%emt 0:25:44]} 16. Rxe1 {[%emt 0:15:47]} axb6 {[%emt 0:01:39]} 17. Bxf3 {[%emt 0:00:18]} Rxa2 {[%emt 0:03:01]} 18. Bxd5 {[%emt 0:19:33]} h6 {[%emt 0:08:50]} 19. c4 {[%emt 0:27:49]} Qd7 {[%emt 0:03:40]} 20. Rd1 {[%emt 0:02:29]} Qe7 {[%emt 0:03:01]} 21. Re1 {[%emt 0:04:58]} Qb4 {[%emt 0:03:37]} 22. Qxb4 {[%emt 0:02:28]} Nxb4 {[%emt 0:00:04]} 23. Bxb7 {[%emt 0:00:18]} Rxb2 {[%emt 0:00:33]} 24. Nd4 {[%emt 0:00:19]} Nd3 {[%emt 0:01:46]} 25. Re2 {[%emt 0:02:03]} Rxe2 {[%emt 0:03:08]} 26. Nxe2 {[%emt 0:00:02]} Kf8 {[%emt 0:00:20]} 27. Nc3 {[%emt 0:01:26]} Ke7 {[%emt 0:02:25]} 28. Na4 {[%emt 0:01:23]} Kd6 {[%emt 0:01:12]} 29. Bg2 {[%emt 0:02:44]} Nd7 {[%emt 0:00:56]} 30. f4 {[%emt 0:01:38]} N3c5 {[%emt 0:00:43]} 31. Nc3 {[%emt 0:00:27]} Nf6 {[%emt 0:00:36]} 32. h3 {[%emt 0:01:34]} Nd3 {[%emt 0:00:08]} 33. Na4 {[%emt 0:00:23]} Kc7 {[%emt 0:00:59]} 34. Bf3 {[%emt 0:00:47]} Ne8 {[%emt 0:00:33]} 35. Bd5 {[%emt 0:00:55]} Nd6 {[%emt 0:00:11]} 36. Kg2 {[%emt 0:00:26]} Nb4 {[%emt 0:00:18]} 37. Kf3 {[%emt 0:00:46]} b5 {[%emt 0:00:36]} 38. Nb2 {[%emt 0:00:28]} Kb6 {[%emt 0:00:52]} 39. f5 {[%emt 0:00:38]} Nxd5 {[%emt 0:00:29]} 40. cxd5 {[%emt 0:00:00]} Kc5 {[%emt 0:00:00]} 41. g4 {[%emt 0:07:51]} Kxd5 {[%emt 0:00:50]} 42. h4 {[%emt 0:00:18]} Kd4 {[%emt 0:01:02]} 43. Kf4 {[%emt 0:00:26]} b4 {[%emt 0:01:32]} 44. g5 {[%emt 0:00:23]} h5 {[%emt 0:01:12]} 45. Na4 {[%emt 0:01:22]} Nc4 {[%emt 0:00:34]} 46. f6 {[%emt 0:00:34]} g6 {[%emt 0:00:06]} 47. Kf3 {[%emt 0:00:08]} b3 {[%emt 0:00:25]} 0-1

[Event "AUT Bundesliga 2019-20"]
[Site "Linz"]
[Date "2019.10.10"]
[Round "1.4"]
[White "Miazhynski, Yuri"]
[Black "Mesaros, Florian"]
[Result "0-1"]
[ECO "B20"]
[WhiteElo "2196"]
[BlackElo "2405"]
[Annotator "NA"]
[PlyCount "68"]
[EventDate "2019.10.10"]
[EventType "team-tourn"]
[EventCountry "AUT"]
[SourceTitle "playchess.com"]
[Source "ChessBase"]
[SourceQuality "1"]
[TimeControl "40/5400+30:1800+30"]

1. e4 {[%emt 0:00:00]} c5 {[%emt 0:00:00]} 2. Ne2 {[%emt 0:00:00]} d6 {[%emt 0:00:00]} 3. g3 {[%emt 0:00:14]} Nf6 {[%emt 0:00:58]} 4. Bg2 {[%emt 0:00:06]} g6 {[%emt 0:00:27]} 5. c3 {[%emt 0:01:04]} Bg7 {[%emt 0:01:39]} 6. O-O {[%emt 0:01:46]} O-O {[%emt 0:02:29]} 7. d4 {[%emt 0:00:37]} Nbd7 {[%emt 0:03:26]} 8. h3 {[%emt 0:06:23]} Rb8 {[%emt 0:06:17]} 9. Be3 {[%emt 0:19:21]} b6 {[%emt 0:00:23]} 10. Nd2 {[%emt 0:10:10]} Bb7 {[%emt 0:01:48]} 11. d5 {[%emt 0:11:37]} b5 {[%emt 0:10:26]} 12. b3 {[%emt 0:04:40]} e6 {[%emt 0:08:02]} 13. c4 {[%emt 0:02:30]} bxc4 {[%emt 0:08:16]} 14. Nxc4 {[%emt 0:06:00]} exd5 {[%emt 0:07:22]} 15. exd5 {[%emt 0:01:19]} Nb6 {[%emt 0:03:19]} 16. Nxb6 {[%emt 0:12:10]} axb6 {[%emt 0:01:33]} 17. Rc1 {[%emt 0:07:29]} Qd7 {[%emt 0:09:12]} 18. Nc3 {[%emt 0:05:42]} b5 {[%emt 0:03:32]} 19. Qd2 {[%emt 0:03:46]} b4 {[%emt 0:01:02]} 20. Na4 {[%emt 0:01:38]} Ba6 {[%emt 0:01:15]} 21. Rfd1 {[%emt 0:00:24]} Rfe8 {[%emt 0:00:56]} 22. Qc2 {[%emt 0:00:54]} Bb5 {[%emt 0:03:32]} 23. Nb2 {[%emt 0:00:21]} Ra8 {[%emt 0:00:19]} 24. Nc4 {[%emt 0:00:26]} Bxc4 {[%emt 0:00:25]} 25. bxc4 {[%emt 0:00:13]} Ra6 {[%emt 0:01:57]} 26. Qd2 {[%emt 0:01:29]} Ne4 {[%emt 0:05:30]} 27. Bxe4 {[%emt 0:00:32]} Rxe4 {[%emt 0:00:08]} 28. Kg2 {[%emt 0:00:13]} Ra3 {[%emt 0:01:31]} 29. Rc2 {[%emt 0:00:48]} Qf5 {[%emt 0:02:56]} 30. Rb1 {[%emt 0:00:54]} Rxc4 {[%emt 0:02:21]} 31. Rxc4 {[%emt 0:01:29]} Qxb1 {[%emt 0:00:07]} 32. Rc2 {[%emt 0:00:25]} Rc3 {[%emt 0:01:04]} 33. Rb2 {[%emt 0:00:57]} Qe4+ {[%emt 0:00:13]} 34. Kh2 {[%emt 0:00:22]} Rd3 {[%emt 0:00:14]} 0-1

[Event "AUT Bundesliga 2019-20"]
[Site "Linz"]
[Date "2019.10.10"]
[Round "1.5"]
[White "Maiwald, Jens-Uwe"]
[Black "Ciolek, Andreas"]
[Result "1-0"]
[ECO "A48"]
[WhiteElo "2439"]
[BlackElo "2238"]
[Annotator "NA"]
[PlyCount "47"]
[EventDate "2019.10.10"]
[EventType "team-tourn"]
[EventCountry "AUT"]
[SourceTitle "playchess.com"]
[Source "ChessBase"]
[SourceQuality "1"]
[TimeControl "40/5400+30:1800+30"]

1. Nf3 {[%emt 0:00:00]} Nf6 {[%emt 0:00:00]} 2. d4 {[%emt 0:02:09]} g6 {[%emt 0:00:06]} 3. c3 {[%emt 0:00:16]} Bg7 {[%emt 0:00:47]} 4. Bg5 {[%emt 0:00:09]} d6 {[%emt 0:03:03]} 5. Nbd2 {[%emt 0:00:21]} O-O {[%emt 0:02:33]} 6. e4 {[%emt 0:00:09]} h6 {[%emt 0:08:39]} 7. Bh4 {[%emt 0:00:19]} g5 {[%emt 0:02:50]} 8. Bg3 {[%emt 0:01:19]} Nh5 {[%emt 0:00:44]} 9. Nc4 {[%emt 0:07:26]} e6 {[%emt 0:11:06]} 10. Nfd2 {[%emt 0:04:50]} Nxg3 {[%emt 0:02:00]} 11. hxg3 {[%emt 0:00:13]} c5 {[%emt 0:13:33]} 12. dxc5 {[%emt 0:08:06]} dxc5 {[%emt 0:01:02]} 13. Ne3 {[%emt 0:01:42]} f5 {[%emt 0:05:45]} 14. Bc4 {[%emt 0:03:59]} Kh8 {[%emt 0:01:52]} 15. Qh5 {[%emt 0:02:40]} Bd7 {[%emt 0:11:29]} 16. Nf3 {[%emt 0:05:22]} b5 {[%emt 0:15:28]} 17. Bb3 {[%emt 0:13:12]} c4 {[%emt 0:03:37]} 18. Bc2 {[%emt 0:00:38]} Kg8 {[%emt 0:02:41]} 19. exf5 {[%emt 0:05:46]} exf5 {[%emt 0:00:44]} 20. O-O-O {[%emt 0:00:17]} b4 {[%emt 0:02:36]} 21. Nxf5 {[%emt 0:08:29]} Rxf5 {[%emt 0:06:57]} 22. Bxf5 {[%emt 0:00:12]} bxc3 {[%emt 0:00:15]} 23. Be6+ {[%emt 0:03:25]} Kh8 {[%emt 0:01:05]} 24. Qg6 {[%emt 0:00:37]} 1-0

[Event "AUT Bundesliga 2019-20"]
[Site "Linz"]
[Date "2019.10.10"]
[Round "1.5"]
[White "Poetz, Florian"]
[Black "Lampl, Gerald"]
[Result "0-1"]
[ECO "B12"]
[WhiteElo "2418"]
[BlackElo "2084"]
[Annotator "NA"]
[PlyCount "64"]
[EventDate "2019.10.10"]
[EventType "team-tourn"]
[EventCountry "AUT"]
[SourceTitle "playchess.com"]
[Source "ChessBase"]
[SourceQuality "1"]
[TimeControl "40/5400+30:1800+30"]

1. e4 {[%emt 0:00:00]} c6 {[%emt 0:00:00]} 2. d4 {[%emt 0:00:00]} d5 {[%emt 0:00:00]} 3. e5 {[%emt 0:00:11]} c5 {[%emt 0:00:00]} 4. dxc5 {[%emt 0:00:27]} Nc6 {[%emt 0:00:00]} 5. Bf4 {[%emt 0:00:46]} e6 {[%emt 0:05:14]} 6. Nf3 {[%emt 0:00:13]} Bxc5 {[%emt 0:02:27]} 7. Bd3 {[%emt 0:00:09]} Qb6 {[%emt 0:14:23]} 8. O-O {[%emt 0:00:21]} Qxb2 {[%emt 0:01:41]} 9. Nbd2 {[%emt 0:00:13]} Qa3 {[%emt 0:04:02]} 10. Nb3 {[%emt 0:14:48]} Bb6 {[%emt 0:07:58]} 11. Qe2 {[%emt 0:02:13]} a6 {[%emt 0:09:27]} 12. c4 {[%emt 0:18:07]} Nge7 {[%emt 0:03:02]} 13. Rac1 {[%emt 0:03:10]} Nb4 {[%emt 0:08:22]} 14. Bb1 {[%emt 0:02:33]} Bd7 {[%emt 0:01:32]} 15. Nfd4 {[%emt 0:13:38]} Ng6 {[%emt 0:13:17]} 16. Bg3 {[%emt 0:03:20]} dxc4 {[%emt 0:03:30]} 17. Rxc4 {[%emt 0:01:44]} O-O {[%emt 0:01:28]} 18. h4 {[%emt 0:13:14]} Bb5 {[%emt 0:05:31]} 19. Nxb5 {[%emt 0:01:28]} axb5 {[%emt 0:00:02]} 20. Rc3 {[%emt 0:04:52]} Nxa2 {[%emt 0:02:19]} 21. Rf3 {[%emt 0:00:07]} b4 {[%emt 0:01:23]} 22. Bxg6 {[%emt 0:10:04]} hxg6 {[%emt 0:02:00]} 23. Ra1 {[%emt 0:00:12]} Rfc8 {[%emt 0:03:01]} 24. Bf4 {[%emt 0:02:52]} Rc3 {[%emt 0:05:00]} 25. Rxc3 {[%emt 0:02:05]} bxc3 {[%emt 0:00:49]} 26. Qb5 {[%emt 0:04:00]} Qa6 {[%emt 0:01:17]} 27. Qd7 {[%emt 0:00:11]} Bxf2+ {[%emt 0:01:46]} 28. Kxf2 {[%emt 0:00:41]} Qb6+ {[%emt 0:00:07]} 29. Be3 {[%emt 0:01:50]} Qxb3 {[%emt 0:00:06]} 30. Rf1 {[%emt 0:00:21]} c2 {[%emt 0:00:29]} 31. Qc7 {[%emt 0:00:49]} Nb4 {[%emt 0:01:57]} 32. Re1 {[%emt 0:00:48]} Nd3+ {[%emt 0:00:24]} 0-1

[Event "AUT Bundesliga 2019-20"]
[Site "Linz"]
[Date "2019.10.10"]
[Round "1.5"]
[White "Halvax, Georg"]
[Black "Gretz, Denis"]
[Result "0-1"]
[ECO "A80"]
[WhiteElo "2414"]
[BlackElo "2329"]
[Annotator "NA"]
[PlyCount "80"]
[EventDate "2019.10.10"]
[EventType "team-tourn"]
[EventCountry "AUT"]
[SourceTitle "playchess.com"]
[Source "ChessBase"]
[SourceQuality "1"]
[TimeControl "40/5400+30:1800+30"]

1. d4 {[%emt 0:00:00]} f5 {[%emt 0:00:00]} 2. Bf4 {[%emt 0:00:00]} Nf6 {[%emt 0:00:31]} 3. e3 {[%emt 0:00:00]} d6 {[%emt 0:02:25]} 4. Nd2 {[%emt 0:02:34]} g6 {[%emt 0:00:41]} 5. h4 {[%emt 0:00:10]} h6 {[%emt 0:01:35]} 6. Qf3 {[%emt 0:00:04]} Nc6 {[%emt 0:02:39]} 7. Qg3 {[%emt 0:05:54]} Rg8 {[%emt 0:02:05]} 8. Be2 {[%emt 0:01:46]} e6 {[%emt 0:01:48]} 9. f3 {[%emt 0:14:05]} Nh5 {[%emt 0:07:40]} 10. Qf2 {[%emt 0:00:38]} Nxf4 {[%emt 0:01:02]} 11. exf4 {[%emt 0:00:08]} Qf6 {[%emt 0:01:36]} 12. Nb3 {[%emt 0:01:39]} Bd7 {[%emt 0:03:28]} 13. Bc4 {[%emt 0:05:04]} O-O-O {[%emt 0:01:48]} 14. O-O-O {[%emt 0:01:45]} g5 {[%emt 0:06:47]} 15. hxg5 {[%emt 0:03:50]} hxg5 {[%emt 0:00:13]} 16. d5 {[%emt 0:02:13]} exd5 {[%emt 0:03:54]} 17. Bxd5 {[%emt 0:00:29]} Rg6 {[%emt 0:01:27]} 18. fxg5 {[%emt 0:36:41]} Qxg5+ {[%emt 0:02:45]} 19. f4 {[%emt 0:00:16]} Qg3 {[%emt 0:02:08]} 20. Qd2 {[%emt 0:01:05]} Rh6 {[%emt 0:08:21]} 21. Ne2 {[%emt 0:02:30]} Qf2 {[%emt 0:01:53]} 22. Rhf1 {[%emt 0:01:24]} Qb6 {[%emt 0:02:14]} 23. Nc3 {[%emt 0:02:59]} Bg7 {[%emt 0:06:45]} 24. a3 {[%emt 0:05:26]} Ne7 {[%emt 0:01:18]} 25. Bf3 {[%emt 0:02:06]} Bc6 {[%emt 0:02:10]} 26. Rde1 {[%emt 0:01:25]} Bf6 {[%emt 0:03:46]} 27. Nd5 {[%emt 0:03:56]} Bxd5 {[%emt 0:04:54]} 28. Bxd5 {[%emt 0:00:09]} Qb5 {[%emt 0:02:13]} 29. Be6+ {[%emt 0:02:00]} Kb8 {[%emt 0:00:13]} 30. Rf3 {[%emt 0:00:29]} d5 {[%emt 0:03:20]} 31. g4 {[%emt 0:01:20]} fxg4 {[%emt 0:06:02]} 32. Bxg4 {[%emt 0:00:03]} Nc6 {[%emt 0:02:32]} 33. Rd3 {[%emt 0:01:15]} a5 {[%emt 0:03:13]} 34. Be2 {[%emt 0:00:20]} Qb6 {[%emt 0:02:24]} 35. a4 {[%emt 0:01:15]} Rh2 {[%emt 0:02:46]} 36. Rxd5 {[%emt 0:01:00]} Rxd5 {[%emt 0:01:22]} 37. Qxd5 {[%emt 0:00:08]} Bh4 {[%emt 0:04:14]} 38. Nc5 {[%emt 0:01:54]} Ka7 {[%emt 0:00:16]} 39. Rh1 {[%emt 0:00:05]} Nb4 {[%emt 0:01:46]} 40. Nd7 {[%emt 0:00:00]} Nxd5 {[%emt 0:00:00]} 0-1

[Event "AUT Bundesliga 2019-20"]
[Site "Linz"]
[Date "2019.10.10"]
[Round "1.6"]
[White "Dittel, Herbert"]
[Black "Freitag, Manfred"]
[Result "0-1"]
[ECO "D85"]
[WhiteElo "2023"]
[BlackElo "2361"]
[Annotator "NA"]
[PlyCount "142"]
[EventDate "2019.10.10"]
[EventType "team-tourn"]
[EventCountry "AUT"]
[SourceTitle "playchess.com"]
[Source "ChessBase"]
[SourceQuality "1"]
[TimeControl "40/5400+30:1800+30"]

1. d4 {[%emt 0:00:00]} Nf6 {[%emt 0:00:00]} 2. Nf3 {[%emt 0:00:00]} g6 {[%emt 0:00:47]} 3. c4 {[%emt 0:00:32]} Bg7 {[%emt 0:00:02]} 4. Nc3 {[%emt 0:00:14]} d5 {[%emt 0:00:12]} 5. cxd5 {[%emt 0:01:51]} Nxd5 {[%emt 0:00:37]} 6. e4 {[%emt 0:00:03]} Nxc3 {[%emt 0:00:06]} 7. bxc3 {[%emt 0:00:12]} c5 {[%emt 0:00:02]} 8. Be3 {[%emt 0:00:17]} Qa5 {[%emt 0:00:16]} 9. Qd2 {[%emt 0:02:02]} O-O {[%emt 0:00:23]} 10. Rc1 {[%emt 0:03:29]} Nd7 {[%emt 0:01:07]} 11. Bd3 {[%emt 0:07:42]} b6 {[%emt 0:02:16]} 12. d5 {[%emt 0:04:31]} Ba6 {[%emt 0:00:23]} 13. c4 {[%emt 0:02:02]} Qxd2+ {[%emt 0:00:03]} 14. Bxd2 {[%emt 0:03:39]} e6 {[%emt 0:00:08]} 15. O-O {[%emt 0:01:44]} Rfe8 {[%emt 0:10:27]} 16. Rfe1 {[%emt 0:05:14]} Rad8 {[%emt 0:14:35]} 17. Bf1 {[%emt 0:03:35]} exd5 {[%emt 0:03:08]} 18. exd5 {[%emt 0:01:19]} Nf6 {[%emt 0:00:21]} 19. Bg5 {[%emt 0:01:16]} h6 {[%emt 0:02:04]} 20. Bxf6 {[%emt 0:05:00]} Bxf6 {[%emt 0:00:01]} 21. Rxe8+ {[%emt 0:00:58]} Rxe8 {[%emt 0:00:34]} 22. Re1 {[%emt 0:00:24]} Kf8 {[%emt 0:00:19]} 23. Rxe8+ {[%emt 0:04:55]} Kxe8 {[%emt 0:00:19]} 24. Bd3 {[%emt 0:00:19]} Bc3 {[%emt 0:01:29]} 25. Kf1 {[%emt 0:01:28]} Ke7 {[%emt 0:01:46]} 26. Ke2 {[%emt 0:00:37]} Kd6 {[%emt 0:00:21]} 27. a4 {[%emt 0:07:48]} Bc8 {[%emt 0:01:22]} 28. h3 {[%emt 0:00:59]} Bd7 {[%emt 0:01:50]} 29. Bc2 {[%emt 0:00:30]} a6 {[%emt 0:00:24]} 30. Kd3 {[%emt 0:10:42]} Ba5 {[%emt 0:00:27]} 31. Ke3 {[%emt 0:00:49]} b5 {[%emt 0:00:42]} 32. axb5 {[%emt 0:00:22]} axb5 {[%emt 0:00:01]} 33. Bd3 {[%emt 0:01:31]} bxc4 {[%emt 0:12:57]} 34. Bxc4 {[%emt 0:00:30]} g5 {[%emt 0:01:09]} 35. g4 {[%emt 0:05:17]} f5 {[%emt 0:00:22]} 36. Nh2 {[%emt 0:02:12]} Bc3 {[%emt 0:03:17]} 37. gxf5 {[%emt 0:07:14]} Bxf5 {[%emt 0:01:17]} 38. Ng4 {[%emt 0:01:46]} Bg7 {[%emt 0:02:42]} 39. f4 {[%emt 0:05:52]} h5 {[%emt 0:00:48]} 40. Nh2 {[%emt 0:00:00]} Bh6 {[%emt 0:00:00]} 41. fxg5 {[%emt 0:03:07]} Bxg5+ {[%emt 0:00:34]} 42. Kf2 {[%emt 0:00:44]} Bxh3 {[%emt 0:00:43]} 43. Kg3 {[%emt 0:00:44]} Bf5 {[%emt 0:01:42]} 44. Nf3 {[%emt 0:00:06]} Be3 {[%emt 0:00:42]} 45. Nh2 {[%emt 0:03:32]} Ke5 {[%emt 0:08:59]} 46. Kh4 {[%emt 0:01:30]} Bg6 {[%emt 0:14:24]} 47. Nf3+ {[%emt 0:02:08]} Kf4 {[%emt 0:01:07]} 48. Nh2 {[%emt 0:03:11]} Bd4 {[%emt 0:02:52]} 49. Nf1 {[%emt 0:01:04]} Bf2+ {[%emt 0:02:12]} 50. Kh3 {[%emt 0:00:09]} Bf5+ {[%emt 0:00:24]} 51. Kg2 {[%emt 0:00:39]} Be1 {[%emt 0:00:01]} 52. Kh2 {[%emt 0:06:27]} h4 {[%emt 0:00:44]} 53. Bb5 {[%emt 0:02:06]} Kf3 {[%emt 0:10:03]} 54. Kg1 {[%emt 0:02:18]} Bc3 {[%emt 0:04:10]} 55. d6 {[%emt 0:03:11]} Bd4+ {[%emt 0:00:52]} 56. Kh1 {[%emt 0:00:18]} Bf6 {[%emt 0:15:01]} 57. d7 {[%emt 0:03:41]} Ke4 {[%emt 0:01:07]} 58. Nd2+ {[%emt 0:01:01]} Kd4 {[%emt 0:00:39]} 59. Nb3+ {[%emt 0:01:42]} Kd5 {[%emt 0:01:55]} 60. Na5 {[%emt 0:05:38]} Be4+ {[%emt 0:00:22]} 61. Kh2 {[%emt 0:00:13]} Kd6 {[%emt 0:00:09]} 62. Nb3 {[%emt 0:01:53]} Bd8 {[%emt 0:05:31]} 63. Nxc5 {[%emt 0:02:05]} Kxc5 {[%emt 0:00:08]} 64. Bf1 {[%emt 0:00:02]} Kd4 {[%emt 0:00:57]} 65. Bg2 {[%emt 0:00:02]} Bd3 {[%emt 0:01:06]} 66. Kh1 {[%emt 0:00:22]} Ke3 {[%emt 0:00:10]} 67. Ba8 {[%emt 0:00:09]} Bc7 {[%emt 0:01:10]} 68. Bb7 {[%emt 0:01:11]} Kf2 {[%emt 0:00:18]} 69. Bc6 {[%emt 0:00:25]} Bf1 {[%emt 0:00:44]} 70. d8=Q Bxd8 {[%emt 0:00:17]} 71. Bd7 {[%emt 0:05:34]} Bg2+ {[%emt 0:00:07]} 0-1

[Event "AUT Bundesliga 2019-20"]
[Site "Linz"]
[Date "2019.10.10"]
[Round "1.6"]
[White "Amann, Harald"]
[Black "Hausner, Ivan"]
[Result "0-1"]
[ECO "E67"]
[WhiteElo "1940"]
[BlackElo "2382"]
[Annotator "NA"]
[PlyCount "84"]
[EventDate "2019.10.10"]
[EventType "team-tourn"]
[EventCountry "AUT"]
[SourceTitle "playchess.com"]
[Source "ChessBase"]
[SourceQuality "1"]
[TimeControl "40/5400+30:1800+30"]

1. d4 {[%emt 0:00:00]} Nf6 {[%emt 0:00:00]} 2. Nf3 {[%emt 0:00:04]} d6 {[%emt 0:00:10]} 3. g3 {[%emt 0:00:28]} g6 {[%emt 0:00:12]} 4. Bg2 {[%emt 0:00:06]} Bg7 {[%emt 0:00:06]} 5. O-O {[%emt 0:00:07]} O-O {[%emt 0:00:04]} 6. c4 {[%emt 0:00:23]} Nbd7 {[%emt 0:00:08]} 7. Nc3 {[%emt 0:00:37]} e5 {[%emt 0:00:07]} 8. d5 {[%emt 0:01:48]} a5 {[%emt 0:00:22]} 9. e4 {[%emt 0:02:20]} Nc5 {[%emt 0:00:06]} 10. Nh4 {[%emt 0:00:16]} c6 {[%emt 0:04:04]} 11. h3 {[%emt 0:25:51]} cxd5 {[%emt 0:00:11]} 12. cxd5 {[%emt 0:00:03]} b6 {[%emt 0:00:18]} 13. Re1 {[%emt 0:03:29]} Ba6 {[%emt 0:02:30]} 14. Bf1 Bxf1 {[%emt 0:00:21]} 15. Kxf1 {[%emt 0:03:52]} Qd7 {[%emt 0:04:17]} 16. g4 {[%emt 0:03:40]} b5 {[%emt 0:00:20]} 17. f3 {[%emt 0:00:01]} b4 {[%emt 0:01:00]} 18. Ne2 {[%emt 0:01:00]} Qb5 {[%emt 0:00:20]} 19. Bg5 {[%emt 0:24:30]} Nd3 {[%emt 0:02:27]} 20. Qd2 {[%emt 0:03:08]} Nxe1 {[%emt 0:00:06]} 21. Rxe1 {[%emt 0:00:08]} Rfc8 {[%emt 0:00:37]} 22. Bh6 {[%emt 0:10:53]} Ne8 {[%emt 0:00:12]} 23. Bxg7 {[%emt 0:04:52]} Nxg7 {[%emt 0:01:22]} 24. Ng2 {[%emt 0:00:16]} Qd7 {[%emt 0:03:38]} 25. Ng3 {[%emt 0:08:45]} Rc7 {[%emt 0:00:45]} 26. Ne3 {[%emt 0:00:22]} Qe7 {[%emt 0:00:18]} 27. b3 {[%emt 0:03:14]} Qg5 {[%emt 0:01:34]} 28. Qe2 {[%emt 0:00:25]} Rc3 {[%emt 0:02:37]} 29. Nc4 {[%emt 0:02:04]} Qd8 {[%emt 0:03:56]} 30. Kg2 {[%emt 0:00:42]} Rc8 {[%emt 0:02:05]} 31. Nf1 {[%emt 0:00:50]} a4 {[%emt 0:00:21]} 32. Qb2 {[%emt 0:00:55]} f5 {[%emt 0:02:09]} 33. exf5 {[%emt 0:00:48]} gxf5 {[%emt 0:00:09]} 34. Qb1 {[%emt 0:00:12]} Qf6 {[%emt 0:01:25]} 35. Nfd2 {[%emt 0:00:21]} e4 {[%emt 0:01:14]} 36. fxe4 {[%emt 0:00:23]} fxg4 {[%emt 0:00:07]} 37. e5 {[%emt 0:00:34]} Qh4 {[%emt 0:00:54]} 38. Ne4 {[%emt 0:00:39]} Qxh3+ {[%emt 0:00:32]} 39. Kg1 {[%emt 0:00:01]} axb3 {[%emt 0:09:49]} 40. Ncxd6 {[%emt 0:00:00]} Rg3+ {[%emt 0:00:00]} 41. Nxg3 {[%emt 0:06:28]} Qxg3+ {[%emt 0:00:37]} 42. Kh1 {[%emt 0:00:25]} Rc2 {[%emt 0:00:17]} 0-1

[Event "AUT Bundesliga 2019-20"]
[Site "Linz"]
[Date "2019.10.10"]
[Round "1.7"]
[White "Lenic, Luka"]
[Black "Dragnev, Valentin"]
[Result "0-1"]
[ECO "D41"]
[WhiteElo "2644"]
[BlackElo "2550"]
[Annotator "ChessBase"]
[PlyCount "78"]
[EventDate "2019.10.10"]
[EventType "team-tourn"]
[EventCountry "AUT"]
[SourceTitle "playchess.com"]
[Source "ChessBase"]
[SourceQuality "1"]
[TimeControl "40/5400+30:1800+30"]

1. d4 {[%emt 0:00:00]} Nf6 {[%emt 0:00:00]} 2. c4 {[%emt 0:00:00]} e6 {[%emt 0:00:00]} 3. Nf3 {[%emt 0:00:00]} d5 {[%emt 0:00:00]} 4. Nc3 {[%emt 0:00:00]} c5 {[%emt 0:00:00]} 5. cxd5 {[%emt 0:00:00]} Nxd5 {[%emt 0:00:01]} 6. e4 {[%emt 0:00:02]} Nxc3 {[%emt 0:00:05]} 7. bxc3 {[%emt 0:00:01]} cxd4 {[%emt 0:00:07]} 8. cxd4 {[%emt 0:00:03]} Bb4+ {[%emt 0:00:07]} 9. Bd2 {[%emt 0:00:02]} Bxd2+ {[%emt 0:00:09]} 10. Qxd2 {[%emt 0:00:02]} O-O {[%emt 0:00:09]} 11. Bc4 {[%emt 0:00:04]} Nd7 {[%emt 0:00:04]} 12. O-O {[%emt 0:00:05]} b6 {[%emt 0:00:03]} 13. Rfe1 {[%emt 0:00:22]} Bb7 {[%emt 0:00:05]} 14. Rad1 {[%emt 0:00:03]} Rc8 {[%emt 0:00:06]} 15. Bb3 {[%emt 0:00:03]} Re8 {[%emt 0:00:11]} 16. h3 {[%emt 0:00:46]} Nf6 {[%emt 0:00:32]} 17. Qf4 {[%emt 0:00:26]} Nh5 {[%emt 0:00:11]} 18. Qh2 {[%emt 0:00:15]} h6 {[%emt 0:00:11]} 19. h4 {[%emt 0:01:18]} b5 {[%emt 0:01:17]} 20. Ne5 {[%emt 0:15:30]} Nf6 {[%emt 0:01:32]} 21. Qf4 {[%emt 0:03:52]} a5 {[%emt 0:11:40]} 22. Rd3 {[%emt 0:13:08]} Re7 {[%emt 0:26:24]} 23. Bd1 {[%emt 0:26:09]} Rec7 {[%emt 0:10:58]} 24. Bf3 {[%emt 0:02:26]} b4 {[%emt 0:10:43]} 25. g4 {[%emt 0:00:49]} Nh7 {[%emt 0:05:51]} 26. d5 {[%emt 0:00:11]} Qf6 {[%emt 0:06:21]} 27. Qg3 {[%emt 0:09:05]} exd5 {[%emt 0:06:12]} 28. exd5 {[%emt 0:00:08]} Rc1 {[%emt 0:01:13]} 29. Rxc1 {[%emt 0:11:10]} Rxc1+ {[%emt 0:00:08]} 30. Kg2 {[%emt 0:00:01]} Rc3 {[%emt 0:01:34]} 31. Be4 {[%emt 0:03:59]} Rxd3 {[%emt 0:04:25]} 32. Nxd3 {[%emt 0:05:27]} Qd8 {[%emt 0:00:38]} 33. Qe5 {[%emt 0:06:12]} Nf6 {[%emt 0:00:27]} 34. Nf4 {[%emt 0:00:24]} Nxg4 {[%emt 0:06:19]} 35. Ne6 {[%emt 0:02:28]} fxe6 {[%emt 0:02:56]} 36. Qxe6+ {[%emt 0:00:10]} Kh8 {[%emt 0:00:40]} 37. Qxg4 {[%emt 0:00:09]} Bxd5 {[%emt 0:00:06]} 38. Qf5 {[%emt 0:00:01]} Bg8 {[%emt 0:03:30]} 39. Bc2 {[%emt 0:00:04]} Qd5+ {[%emt 0:00:29]} 0-1